[Event "Titled Tuesday Blitz March 22 Early 2022"]
[White "Daneshvar, Bardiya"]
[Black "Martinez Alcantara, Jose Eduardo"]
[WhiteFideId "12576468"]
[BlackFideId "3805662"]
[WhiteElo "2295"]
[BlackElo "2690"]
[Result "0-1"]
[Round "03"]
[TimeControl "180+1"]
[Date "2022.03.22"]
[WhiteClock "0:01:04"]
[BlackClock "0:00:26"]

1. d4 {[%clk 0:03:00]}  Nf6 {[%clk 0:02:59]} 2. c4 {[%clk 0:03:00]}  e6 {[%clk 0:03:00]} 3. Nf3 {[%clk 0:03:00]}  Bb4+ {[%clk 0:03:00]} 4. Nbd2 {[%clk 0:03:00]}  b6 {[%clk 0:02:58]} 5. a3 {[%clk 0:03:00]}  Bxd2+ {[%clk 0:02:58]} 6. Bxd2 {[%clk 0:03:00]}  Bb7 {[%clk 0:02:59]} 7. e3 {[%clk 0:03:00]}  d5 {[%clk 0:03:00]} 8. Rc1 {[%clk 0:02:56]}  O-O {[%clk 0:02:48]} 9. c5 {[%clk 0:02:56]}  a5 {[%clk 0:02:30]} 10. cxb6 {[%clk 0:02:47]}  cxb6 {[%clk 0:02:28]} 11. Bb5 {[%clk 0:02:47]}  Ne4 {[%clk 0:02:23]} 12. O-O {[%clk 0:02:42]}  Nd6 {[%clk 0:02:24]} 13. Bd3 {[%clk 0:02:40]}  Nc6 {[%clk 0:02:11]} 14. a4 {[%clk 0:02:36]}  h6 {[%clk 0:01:43]} 15. Bc3 {[%clk 0:02:26]}  Ba6 {[%clk 0:01:31]} 16. Bxa6 {[%clk 0:02:18]}  Rxa6 {[%clk 0:01:31]} 17. Qd3 {[%clk 0:02:17]}  Ra7 {[%clk 0:01:28]} 18. Nd2 {[%clk 0:02:10]}  Qa8 {[%clk 0:01:27]} 19. b3 {[%clk 0:02:04]}  Rc8 {[%clk 0:01:27]} 20. f3 {[%clk 0:02:02]}  Rac7 {[%clk 0:01:28]} 21. Qb1 {[%clk 0:01:58]}  Qa6 {[%clk 0:01:25]} 22. e4 {[%clk 0:01:53]}  b5 {[%clk 0:01:17]} 23. e5 {[%clk 0:01:38]}  Nf5 {[%clk 0:01:16]} 24. Qa1 {[%clk 0:01:28]}  b4 {[%clk 0:01:14]} 25. Bb2 {[%clk 0:01:27]}  Qb6 {[%clk 0:01:14]} 26. Kh1 {[%clk 0:01:25]}  Nfxd4 {[%clk 0:00:50]} 27. Rfe1 {[%clk 0:01:24]}  Nf5 {[%clk 0:00:50]} 28. g4 {[%clk 0:01:23]}  Nfe7 {[%clk 0:00:50]} 29. f4 {[%clk 0:01:20]}  Qf2 {[%clk 0:00:47]} 30. Rcd1 {[%clk 0:01:19]}  Qxf4 {[%clk 0:00:46]} 31. Rf1 {[%clk 0:01:18]}  Qe3 {[%clk 0:00:41]} 32. Rf3 {[%clk 0:01:17]}  Qb6 {[%clk 0:00:40]} 33. Rdf1 {[%clk 0:01:16]}  Ng6 {[%clk 0:00:40]} 34. Qe1 {[%clk 0:01:16]}  Qc5 {[%clk 0:00:36]} 35. h4 {[%clk 0:01:10]}  d4 {[%clk 0:00:31]} 36. Ne4 {[%clk 0:01:08]}  Qd5 {[%clk 0:00:32]} 37. Nd6 {[%clk 0:01:07]}  Ngxe5 {[%clk 0:00:32]} 38. Nxc8 {[%clk 0:01:07]}  Nxf3 {[%clk 0:00:30]} 39. Nb6 {[%clk 0:01:05]}  Nxe1+ {[%clk 0:00:28]} 40. Nxd5 {[%clk 0:01:06]}  exd5 {[%clk 0:00:29]} 41. Rxe1 {[%clk 0:01:07]}  f6 {[%clk 0:00:26]} 42. Kg2 {[%clk 0:01:06]}  Kf7 {[%clk 0:00:26]} 43. Kf2 {[%clk 0:01:05]}  Ne5 {[%clk 0:00:26]} 44. Rd1 {[%clk 0:01:04]}  Rc2+ {[%clk 0:00:26]} 0-1


[Site "https://www.chess.com"]

[Event "Titled Tuesday Blitz March 22 Early 2022"]
[White "Deac, Bogdan-Daniel"]
[Black "Kanyamarala, Trisha"]
[WhiteFideId "1226380"]
[BlackFideId "45004722"]
[WhiteElo "2646"]
[BlackElo "2047"]
[Result "1-0"]
[Round "03"]
[TimeControl "180+1"]
[Date "2022.03.22"]
[WhiteClock "0:00:27"]
[BlackClock "0:00:05"]

1. c4 {[%clk 0:03:00]}  e5 {[%clk 0:02:58]} 2. a3 {[%clk 0:02:59]}  Nf6 {[%clk 0:02:55]} 3. d3 {[%clk 0:02:58]}  c6 {[%clk 0:02:53]} 4. Nf3 {[%clk 0:02:57]}  d6 {[%clk 0:02:52]} 5. g3 {[%clk 0:02:56]}  Be7 {[%clk 0:02:52]} 6. Bg2 {[%clk 0:02:56]}  O-O {[%clk 0:02:52]} 7. O-O {[%clk 0:02:57]}  Nbd7 {[%clk 0:02:50]} 8. Nc3 {[%clk 0:02:53]}  d5 {[%clk 0:02:50]} 9. cxd5 {[%clk 0:02:45]}  cxd5 {[%clk 0:02:51]} 10. d4 {[%clk 0:02:44]}  e4 {[%clk 0:02:49]} 11. Nh4 {[%clk 0:02:44]}  Nb6 {[%clk 0:02:44]} 12. f3 {[%clk 0:02:44]}  Ne8 {[%clk 0:02:42]} 13. fxe4 {[%clk 0:02:41]}  Bxh4 {[%clk 0:02:41]} 14. gxh4 {[%clk 0:02:41]}  Qxh4 {[%clk 0:02:33]} 15. exd5 {[%clk 0:02:36]}  Bh3 {[%clk 0:02:30]} 16. e4 {[%clk 0:02:26]}  Bxg2 {[%clk 0:02:23]} 17. Kxg2 {[%clk 0:02:27]}  Nd6 {[%clk 0:02:10]} 18. Bf4 {[%clk 0:02:13]}  Rad8 {[%clk 0:01:59]} 19. Qe1 {[%clk 0:02:04]}  Qxe1 {[%clk 0:01:44]} 20. Raxe1 {[%clk 0:02:02]}  Rfe8 {[%clk 0:01:44]} 21. b3 {[%clk 0:01:22]}  a6 {[%clk 0:01:43]} 22. e5 {[%clk 0:01:14]}  Nb5 {[%clk 0:01:39]} 23. Nxb5 {[%clk 0:01:14]}  axb5 {[%clk 0:01:39]} 24. d6 {[%clk 0:01:15]}  Nd5 {[%clk 0:01:39]} 25. Bg3 {[%clk 0:01:05]}  Ra8 {[%clk 0:01:37]} 26. Rf3 {[%clk 0:00:59]}  Rxa3 {[%clk 0:01:19]} 27. Rc1 {[%clk 0:00:59]}  h6 {[%clk 0:01:06]} 28. Rc5 {[%clk 0:00:57]}  Nb4 {[%clk 0:00:36]} 29. Rc7 {[%clk 0:00:39]}  Ra2+ {[%clk 0:00:27]} 30. Kh3 {[%clk 0:00:39]}  Rf8 {[%clk 0:00:19]} 31. e6 {[%clk 0:00:33]}  fxe6 {[%clk 0:00:18]} 32. Rxf8+ {[%clk 0:00:33]}  Kxf8 {[%clk 0:00:18]} 33. Rc8+ {[%clk 0:00:34]}  Kf7 {[%clk 0:00:18]} 34. d7 {[%clk 0:00:34]}  Nc6 {[%clk 0:00:14]} 35. Bd6 {[%clk 0:00:27]}  Rd2 {[%clk 0:00:05]} 36. Rxc6 {[%clk 0:00:27]}  Rd3+ {[%clk 0:00:04]} 37. Kg2 {[%clk 0:00:27]}  Rd2+ {[%clk 0:00:03]} 38. Kf3 {[%clk 0:00:27]}  bxc6 {[%clk 0:00:04]} 39. d8=Q {[%clk 0:00:27]}  Rxd4 {[%clk 0:00:04]} 40. Qe7+ {[%clk 0:00:27]}  Kg6 {[%clk 0:00:05]} 41. Qxe6+ {[%clk 0:00:27]} 1-0


[Site "https://www.chess.com"]

[Event "Titled Tuesday Blitz March 22 Early 2022"]
[White "Demin, Vladimir"]
[Black "Svidler, Peter"]
[WhiteFideId "4167457"]
[BlackFideId "4102142"]
[WhiteElo "2536"]
[BlackElo "2725"]
[Result "0-1"]
[Round "03"]
[TimeControl "180+1"]
[Date "2022.03.22"]
[WhiteClock "0:00:02"]
[BlackClock "0:00:49"]

1. d4 {[%clk 0:02:51]}  Nf6 {[%clk 0:02:58]} 2. g4 {[%clk 0:02:50]}  Nxg4 {[%clk 0:02:56]} 3. e4 {[%clk 0:02:50]}  d6 {[%clk 0:02:56]} 4. f3 {[%clk 0:02:50]}  Nf6 {[%clk 0:02:56]} 5. Be3 {[%clk 0:02:49]}  e5 {[%clk 0:02:53]} 6. Ne2 {[%clk 0:02:45]}  Be7 {[%clk 0:02:47]} 7. Nbc3 {[%clk 0:02:44]}  Nbd7 {[%clk 0:02:44]} 8. Qd2 {[%clk 0:02:42]}  c6 {[%clk 0:02:32]} 9. Rg1 {[%clk 0:02:41]}  g6 {[%clk 0:02:31]} 10. O-O-O {[%clk 0:02:40]}  b5 {[%clk 0:02:25]} 11. d5 {[%clk 0:01:47]}  b4 {[%clk 0:02:22]} 12. dxc6 {[%clk 0:01:47]}  bxc3 {[%clk 0:02:21]} 13. cxd7+ {[%clk 0:01:47]}  Bxd7 {[%clk 0:02:18]} 14. Nxc3 {[%clk 0:01:47]}  O-O {[%clk 0:02:16]} 15. Bg5 {[%clk 0:01:35]}  Be6 {[%clk 0:02:13]} 16. Kb1 {[%clk 0:01:24]}  Rb8 {[%clk 0:02:09]} 17. b3 {[%clk 0:00:53]}  Qb6 {[%clk 0:02:03]} 18. Be2 {[%clk 0:00:45]}  Rfc8 {[%clk 0:02:02]} 19. Bxf6 {[%clk 0:00:37]}  Bxf6 {[%clk 0:02:00]} 20. Nd5 {[%clk 0:00:38]}  Bxd5 {[%clk 0:02:00]} 21. Qxd5 {[%clk 0:00:38]}  Rc6 {[%clk 0:01:42]} 22. Bc4 {[%clk 0:00:33]}  Qc7 {[%clk 0:01:42]} 23. Ka1 {[%clk 0:00:20]}  Kg7 {[%clk 0:01:35]} 24. Rg2 {[%clk 0:00:13]}  Rbb6 {[%clk 0:01:33]} 25. Qd3 {[%clk 0:00:09]}  a5 {[%clk 0:01:24]} 26. a4 {[%clk 0:00:04]}  Rb4 {[%clk 0:01:17]} 27. Bb5 {[%clk 0:00:04]}  Rb6 {[%clk 0:01:10]} 28. h4 {[%clk 0:00:02]}  Bxh4 {[%clk 0:01:08]} 29. Kb2 {[%clk 0:00:02]}  Rd4 {[%clk 0:00:54]} 30. Qe2 {[%clk 0:00:02]}  d5 {[%clk 0:00:51]} 31. Rxd4 {[%clk 0:00:01]}  exd4 {[%clk 0:00:50]} 32. Qd3 {[%clk 0:00:02]}  dxe4 {[%clk 0:00:49]} 33. fxe4 {[%clk 0:00:02]}  Bf6 {[%clk 0:00:49]} 34. Rg3 {[%clk 0:00:02]}  Be5 {[%clk 0:00:49]} 35. Rf3 {[%clk 0:00:02]}  h5 {[%clk 0:00:49]} 36. Bc4 {[%clk 0:00:02]}  Rf6 {[%clk 0:00:48]} 37. Rxf6 {[%clk 0:00:02]}  Bxf6 {[%clk 0:00:49]} 0-1


[Site "https://www.chess.com"]

[Event "Titled Tuesday Blitz March 22 Early 2022"]
[White "Devaev, Alexander"]
[Black "Al-Tarboush, Ward"]
[WhiteFideId "4169395"]
[BlackFideId "7601450"]
[WhiteElo "2185"]
[BlackElo "2276"]
[Result "0-1"]
[Round "03"]
[TimeControl "180+1"]
[Date "2022.03.22"]
[WhiteClock "0:00:13"]
[BlackClock "0:00:09"]

1. d4 {[%clk 0:02:55]}  d5 {[%clk 0:02:35]} 2. c4 {[%clk 0:02:53]}  c6 {[%clk 0:02:32]} 3. cxd5 {[%clk 0:02:52]}  cxd5 {[%clk 0:02:30]} 4. Nc3 {[%clk 0:02:52]}  Nf6 {[%clk 0:02:29]} 5. Bf4 {[%clk 0:02:53]}  Nc6 {[%clk 0:02:22]} 6. e3 {[%clk 0:02:53]}  Bg4 {[%clk 0:02:20]} 7. f3 {[%clk 0:02:53]}  Bd7 {[%clk 0:02:17]} 8. Bb5 {[%clk 0:02:52]}  a6 {[%clk 0:02:12]} 9. Bxc6 {[%clk 0:02:51]}  Bxc6 {[%clk 0:02:12]} 10. Nh3 {[%clk 0:02:43]}  e6 {[%clk 0:02:11]} 11. O-O {[%clk 0:02:44]}  Be7 {[%clk 0:02:11]} 12. Nf2 {[%clk 0:02:44]}  Nh5 {[%clk 0:02:09]} 13. Be5 {[%clk 0:02:42]}  f6 {[%clk 0:02:06]} 14. Bf4 {[%clk 0:02:19]}  Nxf4 {[%clk 0:02:04]} 15. exf4 {[%clk 0:02:19]}  O-O {[%clk 0:02:05]} 16. Re1 {[%clk 0:02:18]}  Bd7 {[%clk 0:02:04]} 17. Qd2 {[%clk 0:02:13]}  Bd6 {[%clk 0:02:00]} 18. Nd3 {[%clk 0:02:04]}  Rc8 {[%clk 0:01:55]} 19. Rad1 {[%clk 0:02:01]}  Qb6 {[%clk 0:01:49]} 20. Qf2 {[%clk 0:02:01]}  Rfe8 {[%clk 0:01:44]} 21. Kh1 {[%clk 0:02:00]}  Qc7 {[%clk 0:01:40]} 22. g3 {[%clk 0:01:53]}  b5 {[%clk 0:01:40]} 23. a3 {[%clk 0:01:48]}  a5 {[%clk 0:01:31]} 24. Rc1 {[%clk 0:01:28]}  Qb6 {[%clk 0:01:26]} 25. b4 {[%clk 0:01:25]}  axb4 {[%clk 0:01:25]} 26. axb4 {[%clk 0:01:24]}  Rc4 {[%clk 0:01:24]} 27. Nc5 {[%clk 0:01:24]}  Bc8 {[%clk 0:01:18]} 28. f5 {[%clk 0:01:19]}  e5 {[%clk 0:01:06]} 29. dxe5 {[%clk 0:00:51]}  Rxe5 {[%clk 0:01:04]} 30. Rxe5 {[%clk 0:00:32]}  Bxe5 {[%clk 0:01:00]} 31. Ne2 {[%clk 0:00:32]}  Bxf5 {[%clk 0:00:37]} 32. Rd1 {[%clk 0:00:22]}  Rxb4 {[%clk 0:00:21]} 33. Rxd5 {[%clk 0:00:21]}  Be6 {[%clk 0:00:16]} 34. Rd2 {[%clk 0:00:17]}  Rc4 {[%clk 0:00:12]} 35. Ne4 {[%clk 0:00:16]}  Qxf2 {[%clk 0:00:11]} 36. Nxf2 {[%clk 0:00:17]}  b4 {[%clk 0:00:09]} 37. Nd3 {[%clk 0:00:17]}  Bc3 {[%clk 0:00:09]} 38. Rc2 {[%clk 0:00:16]}  Bf5 {[%clk 0:00:08]} 39. Nxb4 {[%clk 0:00:14]}  Bxc2 {[%clk 0:00:08]} 40. Nxc2 {[%clk 0:00:15]}  Bd2 {[%clk 0:00:08]} 41. Ncd4 {[%clk 0:00:14]}  Be3 {[%clk 0:00:08]} 42. Nf5 {[%clk 0:00:14]}  Bc5 {[%clk 0:00:07]} 43. Kg2 {[%clk 0:00:14]}  Rc2 {[%clk 0:00:08]} 44. Kf1 {[%clk 0:00:14]}  g6 {[%clk 0:00:08]} 45. Nh4 {[%clk 0:00:14]}  Kf7 {[%clk 0:00:08]} 46. h3 {[%clk 0:00:12]}  Bd6 {[%clk 0:00:07]} 47. f4 {[%clk 0:00:12]}  f5 {[%clk 0:00:07]} 48. Nf3 {[%clk 0:00:13]}  Ra2 {[%clk 0:00:07]} 49. Nfd4 {[%clk 0:00:14]}  Ra1+ {[%clk 0:00:08]} 50. Kf2 {[%clk 0:00:14]}  Bc5 {[%clk 0:00:09]} 51. Kf3 {[%clk 0:00:14]}  Ra3+ {[%clk 0:00:09]} 52. Kg2 {[%clk 0:00:14]}  Re3 {[%clk 0:00:08]} 53. Kf1 {[%clk 0:00:11]}  Bxd4 {[%clk 0:00:08]} 54. Nxd4 {[%clk 0:00:11]}  Rxg3 {[%clk 0:00:08]} 55. Kf2 {[%clk 0:00:12]}  Rxh3 {[%clk 0:00:08]} 56. Nf3 {[%clk 0:00:13]}  Rxf3+ {[%clk 0:00:08]} 57. Kxf3 {[%clk 0:00:13]}  h6 {[%clk 0:00:09]} 0-1


[Site "https://www.chess.com"]

[Event "Titled Tuesday Blitz March 22 Early 2022"]
[White "Dixit, Nikhil"]
[Black "Brodowski, Piotr"]
[WhiteFideId "5059534"]
[BlackFideId "1124480"]
[WhiteElo "2223"]
[BlackElo "2422"]
[Result "1-0"]
[Round "03"]
[TimeControl "180+1"]
[Date "2022.03.22"]
[WhiteClock "0:00:21"]
[BlackClock "0:00:26"]

1. e4 {[%clk 0:02:58]}  d6 {[%clk 0:02:59]} 2. Nc3 {[%clk 0:02:45]}  Nf6 {[%clk 0:02:58]} 3. Nge2 {[%clk 0:02:38]}  g6 {[%clk 0:02:58]} 4. g3 {[%clk 0:02:11]}  Bg7 {[%clk 0:02:57]} 5. Bg2 {[%clk 0:02:12]}  O-O {[%clk 0:02:57]} 6. O-O {[%clk 0:02:12]}  c5 {[%clk 0:02:57]} 7. d3 {[%clk 0:02:13]}  Nc6 {[%clk 0:02:57]} 8. h3 {[%clk 0:02:13]}  Rb8 {[%clk 0:02:56]} 9. Nf4 {[%clk 0:02:11]}  b5 {[%clk 0:02:55]} 10. Ncd5 {[%clk 0:02:09]}  Nxd5 {[%clk 0:02:55]} 11. exd5 {[%clk 0:02:09]}  Ne5 {[%clk 0:02:53]} 12. Re1 {[%clk 0:02:07]}  a5 {[%clk 0:02:53]} 13. a4 {[%clk 0:02:06]}  b4 {[%clk 0:02:53]} 14. Rb1 {[%clk 0:02:03]}  b3 {[%clk 0:02:43]} 15. c4 {[%clk 0:01:50]}  Bd7 {[%clk 0:02:43]} 16. Ra1 {[%clk 0:01:49]}  Re8 {[%clk 0:02:17]} 17. Bd2 {[%clk 0:01:50]}  Bf5 {[%clk 0:02:13]} 18. Bc3 {[%clk 0:01:48]}  h5 {[%clk 0:02:09]} 19. Qd2 {[%clk 0:01:34]}  Ra8 {[%clk 0:02:09]} 20. Ra3 {[%clk 0:01:34]}  Qb6 {[%clk 0:02:07]} 21. Qd1 {[%clk 0:01:34]}  Reb8 {[%clk 0:02:05]} 22. Be4 {[%clk 0:01:20]}  Bd7 {[%clk 0:02:04]} 23. Kh2 {[%clk 0:01:18]}  Re8 {[%clk 0:02:03]} 24. Ne2 {[%clk 0:01:15]}  Bf5 {[%clk 0:01:41]} 25. Bxf5 {[%clk 0:01:14]}  gxf5 {[%clk 0:01:41]} 26. Nc1 {[%clk 0:01:13]}  e6 {[%clk 0:01:37]} 27. Rxb3 {[%clk 0:01:12]}  Qc7 {[%clk 0:01:37]} 28. f4 {[%clk 0:01:10]}  Ng6 {[%clk 0:01:32]} 29. Bxg7 {[%clk 0:01:07]}  Kxg7 {[%clk 0:01:33]} 30. dxe6 {[%clk 0:01:08]}  fxe6 {[%clk 0:01:32]} 31. Qxh5 {[%clk 0:01:05]}  Qf7 {[%clk 0:01:33]} 32. Qf3 {[%clk 0:01:03]}  Rab8 {[%clk 0:01:32]} 33. Rb5 {[%clk 0:01:03]}  e5 {[%clk 0:01:28]} 34. Ne2 {[%clk 0:00:54]}  Qf6 {[%clk 0:01:19]} 35. Rg1 {[%clk 0:00:45]}  Kf8 {[%clk 0:00:54]} 36. Nc3 {[%clk 0:00:43]}  Rxb5 {[%clk 0:00:48]} 37. axb5 {[%clk 0:00:41]}  e4 {[%clk 0:00:36]} 38. dxe4 {[%clk 0:00:36]}  fxe4 {[%clk 0:00:36]} 39. Nxe4 {[%clk 0:00:35]}  Qxb2+ {[%clk 0:00:33]} 40. Rg2 {[%clk 0:00:35]}  Qd4 {[%clk 0:00:34]} 41. Ng5 {[%clk 0:00:34]}  Qxc4 {[%clk 0:00:33]} 42. Qh5 {[%clk 0:00:32]}  Qg8 {[%clk 0:00:29]} 43. f5 {[%clk 0:00:26]}  Ne5 {[%clk 0:00:29]} 44. f6 {[%clk 0:00:24]}  Nf7 {[%clk 0:00:26]} 45. Nh7+ {[%clk 0:00:20]}  Qxh7 {[%clk 0:00:26]} 46. Qxh7 {[%clk 0:00:21]}  Ne5 {[%clk 0:00:26]} 47. Qg7# {[%clk 0:00:21]} 1-0


[Site "https://www.chess.com"]

[Event "Titled Tuesday Blitz March 22 Early 2022"]
[White "Gabdrakhmanov, Azat"]
[Black "Pranav, V"]
[WhiteFideId "34189197"]
[BlackFideId "25060783"]
[WhiteElo "2279"]
[BlackElo "2349"]
[Result "0-1"]
[Round "03"]
[TimeControl "180+1"]
[Date "2022.03.22"]
[WhiteClock "0:00:13"]
[BlackClock "0:01:36"]

1. e4 {[%clk 0:03:00]}  e5 {[%clk 0:03:00]} 2. Nf3 {[%clk 0:03:01]}  Nc6 {[%clk 0:03:00]} 3. Bb5 {[%clk 0:03:01]}  a6 {[%clk 0:03:01]} 4. Ba4 {[%clk 0:03:01]}  Nf6 {[%clk 0:03:01]} 5. O-O {[%clk 0:03:01]}  b5 {[%clk 0:03:02]} 6. Bb3 {[%clk 0:03:01]}  Bc5 {[%clk 0:03:03]} 7. c3 {[%clk 0:03:01]}  d6 {[%clk 0:03:03]} 8. d4 {[%clk 0:03:01]}  Bb6 {[%clk 0:03:04]} 9. Bg5 {[%clk 0:03:01]}  h6 {[%clk 0:03:04]} 10. Bh4 {[%clk 0:03:02]}  g5 {[%clk 0:02:54]} 11. Bg3 {[%clk 0:03:02]}  exd4 {[%clk 0:02:52]} 12. Nxd4 {[%clk 0:02:55]}  Nxd4 {[%clk 0:02:52]} 13. cxd4 {[%clk 0:02:55]}  h5 {[%clk 0:02:50]} 14. e5 {[%clk 0:02:41]}  h4 {[%clk 0:02:18]} 15. exf6 {[%clk 0:01:53]}  Qxf6 {[%clk 0:02:17]} 16. Be5 {[%clk 0:01:39]}  dxe5 {[%clk 0:02:14]} 17. dxe5 {[%clk 0:01:40]}  Qf4 {[%clk 0:02:12]} 18. Nc3 {[%clk 0:01:00]}  Bb7 {[%clk 0:01:49]} 19. Nd5 {[%clk 0:00:41]}  Bxd5 {[%clk 0:01:47]} 20. Bxd5 {[%clk 0:00:32]}  Rd8 {[%clk 0:01:47]} 21. Bc6+ {[%clk 0:00:32]}  Ke7 {[%clk 0:01:46]} 22. Qb3 {[%clk 0:00:20]}  Rd2 {[%clk 0:01:45]} 23. Qf3 {[%clk 0:00:18]}  Qxf3 {[%clk 0:01:45]} 24. Bxf3 {[%clk 0:00:19]}  Rxb2 {[%clk 0:01:45]} 25. a4 {[%clk 0:00:19]}  Rd8 {[%clk 0:01:41]} 26. a5 {[%clk 0:00:15]}  Bd4 {[%clk 0:01:39]} 27. Rfc1 {[%clk 0:00:13]}  Rxf2 {[%clk 0:01:36]} 0-1


[Site "https://www.chess.com"]

[Event "Titled Tuesday Blitz March 22 Early 2022"]
[White "Gabrielian, Artur"]
[Black "Willow, Jonah B"]
[WhiteFideId "4131002"]
[BlackFideId "438804"]
[WhiteElo "2440"]
[BlackElo "2261"]
[Result "1-0"]
[Round "03"]
[TimeControl "180+1"]
[Date "2022.03.22"]
[WhiteClock "0:00:11"]
[BlackClock "0:00:10"]

1. e4 {[%clk 0:03:00]}  c5 {[%clk 0:02:58]} 2. Nc3 {[%clk 0:03:00]}  Nc6 {[%clk 0:02:58]} 3. Bb5 {[%clk 0:03:00]}  Nd4 {[%clk 0:02:58]} 4. Nf3 {[%clk 0:02:59]}  e6 {[%clk 0:02:58]} 5. O-O {[%clk 0:02:59]}  a6 {[%clk 0:02:59]} 6. Bd3 {[%clk 0:02:59]}  Nc6 {[%clk 0:02:59]} 7. Nd5 {[%clk 0:02:45]}  Nf6 {[%clk 0:02:38]} 8. Re1 {[%clk 0:02:40]}  d6 {[%clk 0:02:30]} 9. Nxf6+ {[%clk 0:02:36]}  Qxf6 {[%clk 0:02:29]} 10. c3 {[%clk 0:02:36]}  e5 {[%clk 0:02:25]} 11. h3 {[%clk 0:02:33]}  Be7 {[%clk 0:02:23]} 12. Bc4 {[%clk 0:02:31]}  h6 {[%clk 0:02:18]} 13. d4 {[%clk 0:02:27]}  exd4 {[%clk 0:02:12]} 14. cxd4 {[%clk 0:02:26]}  cxd4 {[%clk 0:02:09]} 15. Bd5 {[%clk 0:02:21]}  O-O {[%clk 0:02:07]} 16. Bxc6 {[%clk 0:02:21]}  bxc6 {[%clk 0:02:07]} 17. Qxd4 {[%clk 0:02:20]}  c5 {[%clk 0:02:04]} 18. Qxf6 {[%clk 0:02:13]}  Bxf6 {[%clk 0:02:05]} 19. Bf4 {[%clk 0:02:08]}  Bxb2 {[%clk 0:01:51]} 20. Rab1 {[%clk 0:02:08]}  Ba3 {[%clk 0:01:36]} 21. Bxd6 {[%clk 0:02:03]}  Rd8 {[%clk 0:01:36]} 22. e5 {[%clk 0:02:01]}  Be6 {[%clk 0:01:36]} 23. Re3 {[%clk 0:01:54]}  Bf5 {[%clk 0:01:15]} 24. Rb7 {[%clk 0:01:34]}  Bc1 {[%clk 0:01:11]} 25. Rc3 {[%clk 0:01:00]}  Be4 {[%clk 0:01:09]} 26. Rc7 {[%clk 0:01:00]}  Bb2 {[%clk 0:00:46]} 27. R3xc5 {[%clk 0:00:49]}  Ba3 {[%clk 0:00:46]} 28. Rc3 {[%clk 0:00:41]}  Bxd6 {[%clk 0:00:42]} 29. exd6 {[%clk 0:00:41]}  Rxd6 {[%clk 0:00:42]} 30. Ne5 {[%clk 0:00:41]}  Re8 {[%clk 0:00:34]} 31. Rc8 {[%clk 0:00:18]}  Rxc8 {[%clk 0:00:18]} 32. Rxc8+ {[%clk 0:00:17]}  Kh7 {[%clk 0:00:19]} 33. Nxf7 {[%clk 0:00:17]}  Rd1+ {[%clk 0:00:19]} 34. Kh2 {[%clk 0:00:17]}  Rd2 {[%clk 0:00:20]} 35. Kg3 {[%clk 0:00:18]}  Rxa2 {[%clk 0:00:19]} 36. f3 {[%clk 0:00:17]}  Bd5 {[%clk 0:00:18]} 37. Ne5 {[%clk 0:00:16]}  a5 {[%clk 0:00:17]} 38. Rd8 {[%clk 0:00:16]}  Be6 {[%clk 0:00:16]} 39. Rd6 {[%clk 0:00:15]}  Bb3 {[%clk 0:00:16]} 40. Ra6 {[%clk 0:00:12]}  a4 {[%clk 0:00:16]} 41. Ra7 {[%clk 0:00:12]}  Re2 {[%clk 0:00:14]} 42. f4 {[%clk 0:00:11]}  Bd5 {[%clk 0:00:11]} 43. Rxa4 {[%clk 0:00:08]}  Rxg2+ {[%clk 0:00:11]} 44. Kh4 {[%clk 0:00:09]}  Be6 {[%clk 0:00:06]} 45. Ng4 {[%clk 0:00:08]}  Bf5 {[%clk 0:00:04]} 46. Ra5 {[%clk 0:00:08]}  Bd7 {[%clk 0:00:04]} 47. Ra7 {[%clk 0:00:08]}  Be8 {[%clk 0:00:04]} 48. Nf6+ {[%clk 0:00:08]}  Kg6 {[%clk 0:00:04]} 49. Nxe8 {[%clk 0:00:08]}  Rf2 {[%clk 0:00:03]} 50. Rxg7+ {[%clk 0:00:08]}  Kf5 {[%clk 0:00:04]} 51. Rf7+ {[%clk 0:00:08]}  Kg6 {[%clk 0:00:04]} 52. Rf6+ {[%clk 0:00:09]}  Kh7 {[%clk 0:00:05]} 53. Kg3 {[%clk 0:00:09]}  Ra2 {[%clk 0:00:05]} 54. Nd6 {[%clk 0:00:10]}  Ra3+ {[%clk 0:00:06]} 55. Kg4 {[%clk 0:00:10]}  Kg7 {[%clk 0:00:07]} 56. Re6 {[%clk 0:00:10]}  Ra5 {[%clk 0:00:06]} 57. Nf5+ {[%clk 0:00:10]}  Kh7 {[%clk 0:00:07]} 58. Rxh6+ {[%clk 0:00:10]}  Kg8 {[%clk 0:00:07]} 59. Rf6 {[%clk 0:00:11]}  Kh8 {[%clk 0:00:08]} 60. h4 {[%clk 0:00:11]}  Kh7 {[%clk 0:00:08]} 61. h5 {[%clk 0:00:12]}  Kh8 {[%clk 0:00:09]} 62. Kg5 {[%clk 0:00:12]}  Ra7 {[%clk 0:00:09]} 63. h6 {[%clk 0:00:12]}  Kh7 {[%clk 0:00:09]} 64. Re6 {[%clk 0:00:10]}  Kh8 {[%clk 0:00:10]} 65. Re8+ {[%clk 0:00:10]}  Kh7 {[%clk 0:00:10]} 66. Re7+ {[%clk 0:00:11]}  Kh8 {[%clk 0:00:10]} 67. Rxa7 {[%clk 0:00:11]} 1-0


[Site "https://www.chess.com"]